[Event "Titled Tuesday Blitz April 11 Early 2023"]
[White "Korchmar, Vasiliy"]
[Black "Shuvalov, Evgenij"]
[WhiteFideId "24131750"]
[BlackFideId "4187237"]
[WhiteElo "2370"]
[BlackElo "2080"]
[Result "1-0"]
[Round "11"]
[TimeControl "180+2"]
[Date "2023.04.11"]
[WhiteClock "0:00:49"]
[BlackClock "0:00:05"]

1. Nf3 {[%clk 0:03:00]}  Nf6 {[%clk 0:02:52]} 2. c4 {[%clk 0:03:00]}  g6 {[%clk 0:02:50]} 3. b3 {[%clk 0:03:00]}  Bg7 {[%clk 0:02:51]} 4. Bb2 {[%clk 0:03:01]}  O-O {[%clk 0:02:51]} 5. g3 {[%clk 0:03:02]}  c6 {[%clk 0:02:51]} 6. Bg2 {[%clk 0:03:02]}  d5 {[%clk 0:02:51]} 7. O-O {[%clk 0:03:02]}  a5 {[%clk 0:02:51]} 8. cxd5 {[%clk 0:02:43]}  cxd5 {[%clk 0:02:50]} 9. Nc3 {[%clk 0:02:44]}  Nc6 {[%clk 0:02:49]} 10. Nb5 {[%clk 0:02:43]}  Qb6 {[%clk 0:02:42]} 11. a4 {[%clk 0:02:43]}  Bg4 {[%clk 0:02:33]} 12. h3 {[%clk 0:02:41]}  Bxf3 {[%clk 0:02:33]} 13. Bxf3 {[%clk 0:02:41]}  Rfd8 {[%clk 0:02:31]} 14. Rc1 {[%clk 0:02:38]}  Rac8 {[%clk 0:02:28]} 15. d3 {[%clk 0:02:34]}  Ne8 {[%clk 0:02:09]} 16. Ba3 {[%clk 0:02:27]}  Bf8 {[%clk 0:01:57]} 17. Bc5 {[%clk 0:02:16]}  Qa6 {[%clk 0:01:56]} 18. h4 {[%clk 0:02:17]}  h5 {[%clk 0:01:53]} 19. Qd2 {[%clk 0:02:17]}  Ne5 {[%clk 0:01:43]} 20. Bg2 {[%clk 0:02:15]}  Ng4 {[%clk 0:01:34]} 21. Bh3 {[%clk 0:01:58]}  Rc6 {[%clk 0:01:20]} 22. Nd4 {[%clk 0:01:40]}  Rxc5 {[%clk 0:01:07]} 23. Rxc5 {[%clk 0:01:40]}  e5 {[%clk 0:01:08]} 24. Rxa5 {[%clk 0:01:39]}  Qb6 {[%clk 0:01:05]} 25. Nc2 {[%clk 0:01:16]}  Qxb3 {[%clk 0:01:05]} 26. Rb5 {[%clk 0:01:13]}  Qxa4 {[%clk 0:01:04]} 27. Rxb7 {[%clk 0:01:13]}  Nd6 {[%clk 0:01:00]} 28. Rb4 {[%clk 0:01:08]}  Qa2 {[%clk 0:00:57]} 29. Bxg4 {[%clk 0:01:08]}  hxg4 {[%clk 0:00:46]} 30. Ra1 {[%clk 0:01:08]}  Nc4 {[%clk 0:00:39]} 31. dxc4 {[%clk 0:01:05]}  Bxb4 {[%clk 0:00:38]} 32. Qg5 {[%clk 0:00:52]}  Qxc2 {[%clk 0:00:32]} 33. Qxd8+ {[%clk 0:00:50]}  Kg7 {[%clk 0:00:33]} 34. Ra8 {[%clk 0:00:50]}  Qb1+ {[%clk 0:00:12]} 35. Kh2 {[%clk 0:00:49]}  Qf1 {[%clk 0:00:05]} 36. Qh8# {[%clk 0:00:49]} 1-0


[Site "https://www.chess.com"]

[Event "Titled Tuesday Blitz April 11 Early 2023"]
[White "Kvaloy, Aksel Bu"]
[Black "Reprintsev, Alexander"]
[WhiteFideId "1528815"]
[BlackFideId "14100541"]
[WhiteElo "2208"]
[BlackElo "2211"]
[Result "0-1"]
[Round "11"]
[TimeControl "180+2"]
[Date "2023.04.11"]
[WhiteClock "0:01:06"]
[BlackClock "0:00:50"]

1. d4 {[%clk 0:03:00]}  d5 {[%clk 0:02:56]} 2. c4 {[%clk 0:02:59]}  e5 {[%clk 0:02:55]} 3. dxe5 {[%clk 0:02:58]}  d4 {[%clk 0:02:55]} 4. Nf3 {[%clk 0:02:57]}  Nc6 {[%clk 0:02:56]} 5. a3 {[%clk 0:02:57]}  g6 {[%clk 0:02:51]} 6. e3 {[%clk 0:02:57]}  Bg4 {[%clk 0:02:49]} 7. exd4 {[%clk 0:02:55]}  Bxf3 {[%clk 0:02:47]} 8. Qxf3 {[%clk 0:02:54]}  Nxd4 {[%clk 0:02:47]} 9. Qxb7 {[%clk 0:02:37]}  Nc2+ {[%clk 0:02:44]} 10. Ke2 {[%clk 0:02:38]}  Bg7 {[%clk 0:02:11]} 11. Ra2 {[%clk 0:02:13]}  Ne7 {[%clk 0:01:59]} 12. b4 {[%clk 0:02:06]}  Nd4+ {[%clk 0:01:58]} 13. Ke1 {[%clk 0:02:06]}  Bxe5 {[%clk 0:01:56]} 14. Qe4 {[%clk 0:02:02]}  Bg7 {[%clk 0:01:49]} 15. f3 {[%clk 0:01:52]}  O-O {[%clk 0:01:45]} 16. Kf2 {[%clk 0:01:52]}  Re8 {[%clk 0:01:43]} 17. Bg5 {[%clk 0:01:50]}  c5 {[%clk 0:01:35]} 18. b5 {[%clk 0:01:48]}  Qc8 {[%clk 0:01:31]} 19. Bxe7 {[%clk 0:01:39]}  Nf5 {[%clk 0:01:30]} 20. g4 {[%clk 0:01:26]}  Rxe7 {[%clk 0:01:29]} 21. Qd3 {[%clk 0:01:24]}  Bd4+ {[%clk 0:01:28]} 22. Kg2 {[%clk 0:01:24]}  Ne3+ {[%clk 0:01:27]} 23. Kh3 {[%clk 0:01:24]}  h5 {[%clk 0:01:26]} 24. Be2 {[%clk 0:01:21]}  hxg4+ {[%clk 0:01:24]} 25. fxg4 {[%clk 0:01:22]}  Nd5 {[%clk 0:01:18]} 26. cxd5 {[%clk 0:01:19]}  Re3+ {[%clk 0:01:18]} 27. Qxe3 {[%clk 0:01:20]}  Bxe3 {[%clk 0:01:18]} 28. Nc3 {[%clk 0:01:20]}  Bd4 {[%clk 0:01:09]} 29. Ne4 {[%clk 0:01:19]}  Kg7 {[%clk 0:00:55]} 30. Bc4 {[%clk 0:01:17]}  Qh8+ {[%clk 0:00:53]} 31. Kg2 {[%clk 0:01:16]}  Re8 {[%clk 0:00:53]} 32. Re2 {[%clk 0:01:16]}  Qh4 {[%clk 0:00:53]} 33. h3 {[%clk 0:01:15]}  Rxe4 {[%clk 0:00:52]} 34. Rc2 {[%clk 0:01:09]}  Re3 {[%clk 0:00:50]} 35. Rh2 {[%clk 0:01:07]}  Qg3+ {[%clk 0:00:50]} 36. Kf1 {[%clk 0:01:06]}  Re1# {[%clk 0:00:50]} 0-1


[Site "https://www.chess.com"]

[Event "Titled Tuesday Blitz April 11 Early 2023"]
[White "Leebit02"]
[Black "Piesik, Piotr"]
[BlackFideId "1136194"]
[WhiteElo "2466"]
[BlackElo "2299"]
[Result "1-0"]
[Round "11"]
[TimeControl "180+2"]
[Date "2023.04.11"]
[WhiteClock "0:01:11"]
[BlackClock "0:01:46"]

1. e4 {[%clk 0:02:54]}  g6 {[%clk 0:02:38]} 2. d4 {[%clk 0:02:54]}  Bg7 {[%clk 0:02:37]} 3. Nc3 {[%clk 0:02:51]}  c6 {[%clk 0:02:37]} 4. h4 {[%clk 0:02:48]}  h5 {[%clk 0:02:36]} 5. Nf3 {[%clk 0:02:46]}  d5 {[%clk 0:02:36]} 6. Ng5 {[%clk 0:02:41]}  dxe4 {[%clk 0:02:33]} 7. Bc4 {[%clk 0:02:39]}  Nh6 {[%clk 0:02:33]} 8. Be3 {[%clk 0:02:33]}  O-O {[%clk 0:02:30]} 9. Ncxe4 {[%clk 0:02:24]}  Nf5 {[%clk 0:02:30]} 10. c3 {[%clk 0:02:12]}  Nxe3 {[%clk 0:02:22]} 11. fxe3 {[%clk 0:02:12]}  e5 {[%clk 0:02:21]} 12. O-O {[%clk 0:02:03]}  Bg4 {[%clk 0:02:10]} 13. Qb3 {[%clk 0:02:01]}  Qb6 {[%clk 0:01:53]} 14. Bxf7+ {[%clk 0:01:57]}  Kh8 {[%clk 0:01:52]} 15. Qc2 {[%clk 0:01:50]}  Bf5 {[%clk 0:01:48]} 16. Rxf5 {[%clk 0:01:16]}  gxf5 {[%clk 0:01:48]} 17. Qe2 {[%clk 0:01:17]}  Rxf7 {[%clk 0:01:46]} 18. Qxh5+ {[%clk 0:01:15]}  Kg8 {[%clk 0:01:45]} 19. Qxf7+ {[%clk 0:01:15]}  Kh8 {[%clk 0:01:46]} 20. Qe8+ {[%clk 0:01:11]} 1-0


[Site "https://www.chess.com"]

[Event "Titled Tuesday Blitz April 11 Early 2023"]
[White "Dzagnidze, Nana"]
[Black "Omariev, Maksim"]
[WhiteFideId "13601903"]
[BlackFideId "4193423"]
[WhiteElo "2406"]
[BlackElo "2459"]
[Result "1-0"]
[Round "11"]
[TimeControl "180+2"]
[Date "2023.04.11"]
[WhiteClock "0:00:13"]
[BlackClock "0:00:03"]

1. c4 {[%clk 0:03:00]}  e5 {[%clk 0:02:55]} 2. Nc3 {[%clk 0:03:00]}  h5 {[%clk 0:02:51]} 3. Nf3 {[%clk 0:02:56]}  Nc6 {[%clk 0:02:47]} 4. d4 {[%clk 0:02:54]}  d6 {[%clk 0:02:46]} 5. d5 {[%clk 0:02:39]}  Nce7 {[%clk 0:02:45]} 6. e4 {[%clk 0:02:36]}  h4 {[%clk 0:02:44]} 7. h3 {[%clk 0:02:34]}  Ng6 {[%clk 0:02:42]} 8. Be3 {[%clk 0:02:20]}  Be7 {[%clk 0:02:43]} 9. b4 {[%clk 0:02:17]}  a5 {[%clk 0:02:41]} 10. a3 {[%clk 0:02:17]}  Nf6 {[%clk 0:02:38]} 11. c5 {[%clk 0:02:16]}  Nh5 {[%clk 0:02:19]} 12. Bb5+ {[%clk 0:01:59]}  Kf8 {[%clk 0:02:19]} 13. cxd6 {[%clk 0:01:53]}  Bxd6 {[%clk 0:02:03]} 14. O-O {[%clk 0:01:23]}  axb4 {[%clk 0:01:56]} 15. axb4 {[%clk 0:01:23]}  Rxa1 {[%clk 0:01:57]} 16. Qxa1 {[%clk 0:01:23]}  Bxb4 {[%clk 0:01:58]} 17. Rc1 {[%clk 0:01:18]}  Nhf4 {[%clk 0:01:55]} 18. Ne2 {[%clk 0:01:16]}  Nxe2+ {[%clk 0:00:38]} 19. Bxe2 {[%clk 0:01:15]}  Qe7 {[%clk 0:00:24]} 20. Qa8 {[%clk 0:01:00]}  Qd8 {[%clk 0:00:20]} 21. Qb8 {[%clk 0:00:44]}  Bd6 {[%clk 0:00:18]} 22. Bc5 {[%clk 0:00:43]}  Ke7 {[%clk 0:00:18]} 23. Bxd6+ {[%clk 0:00:41]}  Kxd6 {[%clk 0:00:19]} 24. Qa7 {[%clk 0:00:23]}  Ke7 {[%clk 0:00:03]} 25. Qc5+ {[%clk 0:00:22]}  Qd6 {[%clk 0:00:03]} 26. Qxc7+ {[%clk 0:00:22]}  Qxc7 {[%clk 0:00:04]} 27. Rxc7+ {[%clk 0:00:21]}  Kf6 {[%clk 0:00:05]} 28. Bb5 {[%clk 0:00:19]}  Rd8 {[%clk 0:00:05]} 29. Kf1 {[%clk 0:00:18]}  Nf4 {[%clk 0:00:02]} 30. Nxh4 {[%clk 0:00:17]}  g6 {[%clk 0:00:03]} 31. Nf3 {[%clk 0:00:17]}  g5 {[%clk 0:00:03]} 32. Ne1 {[%clk 0:00:17]}  g4 {[%clk 0:00:03]} 33. hxg4 {[%clk 0:00:17]}  Bxg4 {[%clk 0:00:04]} 34. f3 {[%clk 0:00:17]}  Bh5 {[%clk 0:00:04]} 35. Nd3 {[%clk 0:00:17]}  Nxd3 {[%clk 0:00:03]} 36. Bxd3 {[%clk 0:00:18]}  Rb8 {[%clk 0:00:03]} 37. Bb5 {[%clk 0:00:18]}  Kg5 {[%clk 0:00:02]} 38. Kf2 {[%clk 0:00:17]}  f5 {[%clk 0:00:02]} 39. exf5 {[%clk 0:00:17]}  Kxf5 {[%clk 0:00:02]} 40. g4+ {[%clk 0:00:17]}  Bxg4 {[%clk 0:00:03]} 41. fxg4+ {[%clk 0:00:17]}  Kxg4 {[%clk 0:00:04]} 42. Ke3 {[%clk 0:00:18]}  Kf5 {[%clk 0:00:04]} 43. Bd3+ {[%clk 0:00:18]}  e4 {[%clk 0:00:03]} 44. Bxe4+ {[%clk 0:00:18]}  Ke5 {[%clk 0:00:04]} 45. Re7+ {[%clk 0:00:18]}  Kd6 {[%clk 0:00:04]} 46. Re6+ {[%clk 0:00:18]}  Kc5 {[%clk 0:00:05]} 47. d6 {[%clk 0:00:17]}  b5 {[%clk 0:00:05]} 48. d7 {[%clk 0:00:17]}  Rd8 {[%clk 0:00:06]} 49. Bc6 {[%clk 0:00:16]}  Kb6 {[%clk 0:00:03]} 50. Re8 {[%clk 0:00:15]}  Rb8 {[%clk 0:00:01]} 51. Rxb8+ {[%clk 0:00:14]}  Ka7 {[%clk 0:00:02]} 52. d8=Q {[%clk 0:00:13]}  b4 {[%clk 0:00:03]} 53. Qb6# {[%clk 0:00:13]} 1-0


[Site "https://www.chess.com"]

[Event "Titled Tuesday Blitz April 11 Early 2023"]
[White "Gonzalez, Francisco Silva"]
[Black "Vlassov, Nikolai"]
[WhiteFideId "1512285"]
[BlackFideId "4103360"]
[WhiteElo "2074"]
[BlackElo "2324"]
[Result "1-0"]
[Round "11"]
[TimeControl "180+2"]
[Date "2023.04.11"]
[WhiteClock "0:01:10"]
[BlackClock "0:00:03"]

1. d4 {[%clk 0:03:00]}  Nf6 {[%clk 0:02:58]} 2. c4 {[%clk 0:03:01]}  Nc6 {[%clk 0:02:57]} 3. Nf3 {[%clk 0:03:00]}  e6 {[%clk 0:02:57]} 4. a3 {[%clk 0:03:00]}  g6 {[%clk 0:02:54]} 5. Nc3 {[%clk 0:03:00]}  Bg7 {[%clk 0:02:54]} 6. h3 {[%clk 0:02:59]}  O-O {[%clk 0:02:53]} 7. Bg5 {[%clk 0:02:59]}  h6 {[%clk 0:02:52]} 8. Bh4 {[%clk 0:02:59]}  d6 {[%clk 0:02:49]} 9. e3 {[%clk 0:02:58]}  e5 {[%clk 0:02:48]} 10. Be2 {[%clk 0:02:57]}  Bf5 {[%clk 0:02:29]} 11. g4 {[%clk 0:02:55]}  Bd7 {[%clk 0:02:26]} 12. d5 {[%clk 0:02:51]}  Ne7 {[%clk 0:02:24]} 13. Bd3 {[%clk 0:02:39]}  Qe8 {[%clk 0:02:21]} 14. Qc2 {[%clk 0:02:36]}  Nh7 {[%clk 0:02:19]} 15. Rg1 {[%clk 0:02:35]}  f5 {[%clk 0:02:14]} 16. gxf5 {[%clk 0:02:35]}  gxf5 {[%clk 0:02:13]} 17. Be2 {[%clk 0:02:14]}  Ng6 {[%clk 0:02:06]} 18. Bg3 {[%clk 0:02:12]}  f4 {[%clk 0:01:46]} 19. Bh2 {[%clk 0:02:11]}  Bf5 {[%clk 0:01:41]} 20. Bd3 {[%clk 0:02:11]}  e4 {[%clk 0:01:24]} 21. Nxe4 {[%clk 0:02:11]}  fxe3 {[%clk 0:01:22]} 22. fxe3 {[%clk 0:02:10]}  Bxb2 {[%clk 0:01:06]} 23. Rb1 {[%clk 0:01:58]}  Bg7 {[%clk 0:01:01]} 24. Ke2 {[%clk 0:01:52]}  Kh8 {[%clk 0:00:49]} 25. Nxd6 {[%clk 0:01:49]}  Bxd3+ {[%clk 0:00:18]} 26. Qxd3 {[%clk 0:01:48]}  cxd6 {[%clk 0:00:18]} 27. Rxg6 {[%clk 0:01:48]}  Qf7 {[%clk 0:00:16]} 28. Bf4 {[%clk 0:01:48]}  Rae8 {[%clk 0:00:15]} 29. Kd2 {[%clk 0:01:42]}  Ng5 {[%clk 0:00:12]} 30. Nxg5 {[%clk 0:01:31]}  hxg5 {[%clk 0:00:12]} 31. Bxg5 {[%clk 0:01:19]}  Qf2+ {[%clk 0:00:09]} 32. Qe2 {[%clk 0:01:20]}  Bc3+ {[%clk 0:00:07]} 33. Kd3 {[%clk 0:01:19]}  Qf5+ {[%clk 0:00:07]} 34. Kxc3 {[%clk 0:01:19]}  Qxg6 {[%clk 0:00:08]} 35. Rg1 {[%clk 0:01:16]}  Qg7+ {[%clk 0:00:05]} 36. Kc2 {[%clk 0:01:15]}  Qh7+ {[%clk 0:00:05]} 37. Kc1 {[%clk 0:01:13]}  Rf5 {[%clk 0:00:04]} 38. h4 {[%clk 0:01:12]}  Ref8 {[%clk 0:00:03]} 39. Qb2+ {[%clk 0:01:10]} 1-0


[Site "https://www.chess.com"]

[Event "Titled Tuesday Blitz April 11 Early 2023"]
[White "Ibadov, Dashgyn"]
[Black "Reefat, Bin-Sattar"]
[WhiteFideId "24107514"]
[BlackFideId "10200207"]
[WhiteElo "2208"]
[BlackElo "2462"]
[Result "0-1"]
[Round "11"]
[TimeControl "180+2"]
[Date "2023.04.11"]
[WhiteClock "0:00:03"]
[BlackClock "0:00:10"]

1. e4 {[%clk 0:03:00]}  e6 {[%clk 0:02:57]} 2. d4 {[%clk 0:03:00]}  d5 {[%clk 0:02:56]} 3. Nc3 {[%clk 0:03:01]}  Nf6 {[%clk 0:02:56]} 4. e5 {[%clk 0:02:59]}  Nfd7 {[%clk 0:02:55]} 5. Nce2 {[%clk 0:03:00]}  c5 {[%clk 0:02:56]} 6. c3 {[%clk 0:03:00]}  Nc6 {[%clk 0:02:57]} 7. Nf3 {[%clk 0:03:01]}  b5 {[%clk 0:02:55]} 8. Nf4 {[%clk 0:03:00]}  b4 {[%clk 0:02:55]} 9. c4 {[%clk 0:03:00]}  Nb6 {[%clk 0:02:36]} 10. cxd5 {[%clk 0:02:56]}  Nxd5 {[%clk 0:02:36]} 11. Bb5 {[%clk 0:02:55]}  Qb6 {[%clk 0:02:30]} 12. Nxd5 {[%clk 0:02:50]}  exd5 {[%clk 0:02:29]} 13. Bxc6+ {[%clk 0:02:48]}  Qxc6 {[%clk 0:02:30]} 14. dxc5 {[%clk 0:02:47]}  Ba6 {[%clk 0:02:29]} 15. Be3 {[%clk 0:02:40]}  Be7 {[%clk 0:02:12]} 16. Rc1 {[%clk 0:02:27]}  O-O {[%clk 0:02:11]} 17. Nd4 {[%clk 0:02:27]}  Qg6 {[%clk 0:02:11]} 18. Qf3 {[%clk 0:02:05]}  Rfe8 {[%clk 0:02:08]} 19. Ne2 {[%clk 0:01:42]}  Qd3 {[%clk 0:01:16]} 20. Nf4 {[%clk 0:01:37]}  Qb5 {[%clk 0:01:03]} 21. Nxd5 {[%clk 0:01:07]}  Rac8 {[%clk 0:01:03]} 22. b3 {[%clk 0:00:50]}  Bxc5 {[%clk 0:00:59]} 23. Rc4 {[%clk 0:00:37]}  Bb7 {[%clk 0:00:41]} 24. O-O {[%clk 0:00:17]}  Bxe3 {[%clk 0:00:31]} 25. e6 {[%clk 0:00:12]}  Bxd5 {[%clk 0:00:17]} 26. Qxf7+ {[%clk 0:00:11]}  Kh8 {[%clk 0:00:17]} 27. Rxc8 {[%clk 0:00:05]}  Rxc8 {[%clk 0:00:16]} 28. fxe3 {[%clk 0:00:06]}  Qe8 {[%clk 0:00:15]} 29. Qxa7 {[%clk 0:00:03]}  Qxe6 {[%clk 0:00:14]} 30. Qd4 {[%clk 0:00:03]}  h6 {[%clk 0:00:13]} 31. h3 {[%clk 0:00:02]}  Rc2 {[%clk 0:00:11]} 32. Rf2 {[%clk 0:00:02]}  Rxf2 {[%clk 0:00:10]} 33. Kxf2 {[%clk 0:00:03]}  Qe4 {[%clk 0:00:10]} 34. Qxe4 {[%clk 0:00:02]}  Bxe4 {[%clk 0:00:10]} 35. Kg3 {[%clk 0:00:01]}  g5 {[%clk 0:00:10]} 36. h4 {[%clk 0:00:01]}  Kg7 {[%clk 0:00:10]} 37. hxg5 {[%clk 0:00:02]}  hxg5 {[%clk 0:00:10]} 38. Kg4 {[%clk 0:00:02]}  Kg6 {[%clk 0:00:10]} 39. g3 {[%clk 0:00:03]}  Bb1 {[%clk 0:00:09]} 40. Kf3 {[%clk 0:00:03]}  Bxa2 {[%clk 0:00:09]} 41. Ke4 {[%clk 0:00:02]}  Bxb3 {[%clk 0:00:10]} 42. Kd4 {[%clk 0:00:03]}  Be6 {[%clk 0:00:10]} 0-1


[Site "https://www.chess.com"]

[Event "Titled Tuesday Blitz April 11 Early 2023"]
[White "egorchess95"]
[Black "Rottenwohrer Suarez, Juan"]
[BlackFideId "32068182"]
[WhiteElo "2542"]
[BlackElo "2174"]
[Result "1-0"]
[Round "11"]
[TimeControl "180+2"]
[Date "2023.04.11"]
[WhiteClock "0:00:44"]
[BlackClock "0:00:03"]

1. e4 {[%clk 0:03:00]}  c5 {[%clk 0:02:59]} 2. Nf3 {[%clk 0:03:00]}  g6 {[%clk 0:02:59]} 3. d4 {[%clk 0:03:00]}  cxd4 {[%clk 0:03:00]} 4. Nxd4 {[%clk 0:03:01]}  Nc6 {[%clk 0:03:00]} 5. Be3 {[%clk 0:03:01]}  Nf6 {[%clk 0:03:00]} 6. Nc3 {[%clk 0:03:01]}  Bg7 {[%clk 0:03:01]} 7. Bc4 {[%clk 0:03:02]}  O-O {[%clk 0:03:01]} 8. Bb3 {[%clk 0:03:02]}  d5 {[%clk 0:03:02]} 9. exd5 {[%clk 0:02:59]}  Na5 {[%clk 0:03:02]} 10. Nde2 {[%clk 0:02:47]}  a6 {[%clk 0:03:00]} 11. O-O {[%clk 0:02:47]}  b5 {[%clk 0:02:59]} 12. Nd4 {[%clk 0:02:39]}  Bb7 {[%clk 0:02:56]} 13. Re1 {[%clk 0:02:32]}  Nxb3 {[%clk 0:02:32]} 14. Nxb3 {[%clk 0:02:30]}  Nxd5 {[%clk 0:02:31]} 15. Bd4 {[%clk 0:02:30]}  Nxc3 {[%clk 0:02:29]} 16. bxc3 {[%clk 0:02:31]}  Qd5 {[%clk 0:02:27]} 17. Qg4 {[%clk 0:02:29]}  h5 {[%clk 0:02:24]} 18. Qg3 {[%clk 0:02:29]}  e6 {[%clk 0:02:19]} 19. Rad1 {[%clk 0:02:28]}  Rfd8 {[%clk 0:02:17]} 20. Rd3 {[%clk 0:02:23]}  Qf5 {[%clk 0:02:07]} 21. Nc5 {[%clk 0:01:33]}  Bd5 {[%clk 0:02:07]} 22. Bxg7 {[%clk 0:01:31]}  Kxg7 {[%clk 0:02:07]} 23. Re5 {[%clk 0:01:31]}  Qf6 {[%clk 0:02:06]} 24. Rxh5 {[%clk 0:01:27]}  Bxa2 {[%clk 0:01:58]} 25. Ne4 {[%clk 0:01:25]}  Qe7 {[%clk 0:01:37]} 26. Qe5+ {[%clk 0:01:21]}  f6 {[%clk 0:01:16]} 27. Nxf6 {[%clk 0:01:21]}  Qxf6 {[%clk 0:00:27]} 28. Rh7+ {[%clk 0:01:20]}  Kxh7 {[%clk 0:00:16]} 29. Qxf6 {[%clk 0:01:21]}  Rxd3 {[%clk 0:00:15]} 30. cxd3 {[%clk 0:01:22]}  a5 {[%clk 0:00:13]} 31. Qf7+ {[%clk 0:01:17]}  Kh6 {[%clk 0:00:12]} 32. Qf4+ {[%clk 0:01:17]}  Kh7 {[%clk 0:00:09]} 33. Qc7+ {[%clk 0:01:16]}  Kh6 {[%clk 0:00:08]} 34. c4 {[%clk 0:01:13]}  bxc4 {[%clk 0:00:04]} 35. dxc4 {[%clk 0:01:14]}  a4 {[%clk 0:00:04]} 36. Qb7 {[%clk 0:01:13]}  Rd8 {[%clk 0:00:02]} 37. h4 {[%clk 0:01:00]}  Bb3 {[%clk 0:00:02]} 38. Qb4 {[%clk 0:00:58]}  Rd7 {[%clk 0:00:02]} 39. Qf8+ {[%clk 0:00:56]}  Kh7 {[%clk 0:00:02]} 40. Qa3 {[%clk 0:00:44]}  Rc7 {[%clk 0:00:02]} 41. c5 {[%clk 0:00:45]}  Kg7 {[%clk 0:00:02]} 42. Kh2 {[%clk 0:00:43]}  Kf7 {[%clk 0:00:02]} 43. g4 {[%clk 0:00:43]}  Kf6 {[%clk 0:00:03]} 44. Kg3 {[%clk 0:00:44]}  Ke5 {[%clk 0:00:03]} 45. Qb4 {[%clk 0:00:44]}  Kd5 {[%clk 0:00:03]} 46. h5 {[%clk 0:00:43]}  gxh5 {[%clk 0:00:04]} 47. gxh5 {[%clk 0:00:43]}  Rxc5 {[%clk 0:00:04]} 48. h6 {[%clk 0:00:44]}  Rc7 {[%clk 0:00:03]} 49. Qd2+ {[%clk 0:00:43]}  Kc6 {[%clk 0:00:02]} 50. Qc3+ {[%clk 0:00:43]}  Kb7 {[%clk 0:00:03]} 51. Qxc7+ {[%clk 0:00:44]}  Kxc7 {[%clk 0:00:03]} 52. h7 {[%clk 0:00:44]} 1-0


[Site "https://www.chess.com"]

[Event "Titled Tuesday Blitz April 11 Early 2023"]
[White "Dobre, Claudiu-Cristian"]
[Black "Orujov2008"]
[WhiteFideId "1211854"]
[WhiteElo "2207"]
[BlackElo "2333"]
[Result "1-0"]
[Round "11"]
[TimeControl "180+2"]
[Date "2023.04.11"]
[WhiteClock "0:01:08"]
[BlackClock "0:00:33"]

1. e4 {[%clk 0:03:00]}  e5 {[%clk 0:02:47]} 2. Nf3 {[%clk 0:03:00]}  Nf6 {[%clk 0:02:46]} 3. Nxe5 {[%clk 0:03:00]}  Nxe4 {[%clk 0:02:40]} 4. Qe2 {[%clk 0:02:58]}  Qe7 {[%clk 0:02:39]} 5. Qxe4 {[%clk 0:02:57]}  d6 {[%clk 0:02:33]} 6. d4 {[%clk 0:02:56]}  dxe5 {[%clk 0:02:32]} 7. Qxe5 {[%clk 0:02:44]}  Qxe5+ {[%clk 0:02:31]} 8. dxe5 {[%clk 0:02:43]}  Nc6 {[%clk 0:02:31]} 9. Bb5 {[%clk 0:02:25]}  Bd7 {[%clk 0:02:31]} 10. O-O {[%clk 0:02:00]}  Nxe5 {[%clk 0:02:04]} 11. Re1 {[%clk 0:01:59]}  f6 {[%clk 0:02:04]} 12. Bxd7+ {[%clk 0:01:59]}  Kxd7 {[%clk 0:02:03]} 13. Nc3 {[%clk 0:01:59]}  Bb4 {[%clk 0:02:01]} 14. Bd2 {[%clk 0:01:59]}  Rhe8 {[%clk 0:02:00]} 15. Rad1 {[%clk 0:01:54]}  Kc6 {[%clk 0:02:00]} 16. a3 {[%clk 0:01:51]}  Bxc3 {[%clk 0:01:50]} 17. Bxc3 {[%clk 0:01:50]}  Nc4 {[%clk 0:01:50]} 18. Kf1 {[%clk 0:01:40]}  b5 {[%clk 0:01:31]} 19. Rxe8 {[%clk 0:01:36]}  Rxe8 {[%clk 0:01:31]} 20. Rd3 {[%clk 0:01:36]}  a5 {[%clk 0:01:28]} 21. b3 {[%clk 0:01:28]}  Nxa3 {[%clk 0:01:20]} 22. Bxa5 {[%clk 0:01:28]}  Re5 {[%clk 0:01:11]} 23. Bb4 {[%clk 0:01:23]}  Nb1 {[%clk 0:00:53]} 24. Rd1 {[%clk 0:01:22]}  Re4 {[%clk 0:00:47]} 25. c3 {[%clk 0:01:11]}  Rxb4 {[%clk 0:00:36]} 26. cxb4 {[%clk 0:01:11]}  Na3 {[%clk 0:00:36]} 27. Rc1+ {[%clk 0:01:10]}  Kd6 {[%clk 0:00:33]} 28. Ke2 {[%clk 0:01:08]} 1-0


[Site "https://www.chess.com"]

[Event "Titled Tuesday Blitz April 11 Early 2023"]
[White "Sai Han Thiha"]
[Black "Akylbek2021"]
[WhiteFideId "13012290"]
[WhiteElo "1954"]
[BlackElo "2354"]
[Result "0-1"]
[Round "11"]
[TimeControl "180+2"]
[Date "2023.04.11"]
[WhiteClock "0:00:04"]
[BlackClock "0:00:12"]

1. d4 {[%clk 0:03:00]}  Nf6 {[%clk 0:02:59]} 2. c4 {[%clk 0:03:01]}  g6 {[%clk 0:02:59]} 3. Nc3 {[%clk 0:03:01]}  Bg7 {[%clk 0:03:00]} 4. e4 {[%clk 0:03:02]}  d6 {[%clk 0:03:01]} 5. Nf3 {[%clk 0:03:02]}  O-O {[%clk 0:03:01]} 6. Be2 {[%clk 0:03:03]}  Bg4 {[%clk 0:03:01]} 7. Be3 {[%clk 0:03:01]}  Nfd7 {[%clk 0:03:01]} 8. Qd2 {[%clk 0:02:58]}  e5 {[%clk 0:02:46]} 9. d5 {[%clk 0:02:54]}  Bxf3 {[%clk 0:02:39]} 10. gxf3 {[%clk 0:02:06]}  f5 {[%clk 0:02:39]} 11. exf5 {[%clk 0:02:03]}  Rxf5 {[%clk 0:02:14]} 12. Ne4 {[%clk 0:01:56]}  Qh4 {[%clk 0:01:43]} 13. O-O-O {[%clk 0:01:47]}  Rf4 {[%clk 0:01:34]} 14. Rdg1 {[%clk 0:01:31]}  Na6 {[%clk 0:01:26]} 15. Rg4 {[%clk 0:00:52]}  Qe7 {[%clk 0:01:07]} 16. h4 {[%clk 0:00:36]}  Nac5 {[%clk 0:01:00]} 17. Nxc5 {[%clk 0:00:34]}  Nxc5 {[%clk 0:00:56]} 18. Bxc5 {[%clk 0:00:31]}  dxc5 {[%clk 0:00:50]} 19. h5 {[%clk 0:00:28]}  Rxg4 {[%clk 0:00:46]} 20. fxg4 {[%clk 0:00:29]}  Rf8 {[%clk 0:00:46]} 21. Qe3 {[%clk 0:00:27]}  e4 {[%clk 0:00:39]} 22. hxg6 {[%clk 0:00:27]}  hxg6 {[%clk 0:00:38]} 23. f4 {[%clk 0:00:20]}  Qf6 {[%clk 0:00:36]} 24. Qd2 {[%clk 0:00:21]}  Qxf4 {[%clk 0:00:34]} 25. Qxf4 {[%clk 0:00:20]}  Rxf4 {[%clk 0:00:35]} 26. Kd2 {[%clk 0:00:21]}  Bd4 {[%clk 0:00:35]} 27. Rh2 {[%clk 0:00:19]}  Kg7 {[%clk 0:00:30]} 28. b3 {[%clk 0:00:20]}  Rf6 {[%clk 0:00:27]} 29. a3 {[%clk 0:00:18]}  c6 {[%clk 0:00:27]} 30. b4 {[%clk 0:00:17]}  cxb4 {[%clk 0:00:25]} 31. axb4 {[%clk 0:00:17]}  cxd5 {[%clk 0:00:26]} 32. cxd5 {[%clk 0:00:18]}  Rb6 {[%clk 0:00:23]} 33. b5 {[%clk 0:00:18]}  a6 {[%clk 0:00:23]} 34. Rh1 {[%clk 0:00:16]}  axb5 {[%clk 0:00:22]} 35. Rc1 {[%clk 0:00:15]}  b4 {[%clk 0:00:20]} 36. Rc7+ {[%clk 0:00:15]}  Kf6 {[%clk 0:00:20]} 37. d6 {[%clk 0:00:12]}  Rxd6 {[%clk 0:00:19]} 38. Rxb7 {[%clk 0:00:13]}  Bb6+ {[%clk 0:00:18]} 39. Ke1 {[%clk 0:00:11]}  Ke5 {[%clk 0:00:18]} 40. Rf7 {[%clk 0:00:07]}  b3 {[%clk 0:00:17]} 41. Bd1 {[%clk 0:00:01]}  Ba5+ {[%clk 0:00:17]} 42. Ke2 {[%clk 0:00:01]}  Rd2+ {[%clk 0:00:17]} 43. Ke3 {[%clk 0:00:01]}  Rxd1 {[%clk 0:00:17]} 44. Re7+ {[%clk 0:00:02]}  Kd6 {[%clk 0:00:17]} 45. Ra7 {[%clk 0:00:02]}  Bb6+ {[%clk 0:00:16]} 46. Kxe4 {[%clk 0:00:02]}  Bxa7 {[%clk 0:00:15]} 47. g5 {[%clk 0:00:03]}  b2 {[%clk 0:00:15]} 48. Kf4 {[%clk 0:00:04]}  b1=Q {[%clk 0:00:15]} 49. Kg4 {[%clk 0:00:05]}  Qf5+ {[%clk 0:00:14]} 50. Kh4 {[%clk 0:00:04]}  Bf2# {[%clk 0:00:12]} 0-1


[Site "https://www.chess.com"]